fUSD/lending_fUSD_20251006
["ID","MTS","AMOUNT","RATE_DAILY","PERIOD"]
[389625240,1759752687867,-3776.21,0.00016438,2]
[389625241,1759752687878,-360.198638,0.00016438,2]
[389625242,1759752687887,-151.0,0.00016438,2]
[389625243,1759752687896,-1722.25,0.00016438,2]
[389625244,1759752687906,-323.365855,0.00016438,2]
[389625245,1759752687917,-3489.07399689,0.00016438,2]
[389625246,1759752687927,-8205.58605353,0.00016438,2]
[389625247,1759752687936,-500.0,0.00016438,2]
[389625248,1759752687946,-288.45061,0.00016438,2]
[389625249,1759752687955,-3776.21,0.00016438,2]
[389625250,1759752687965,-360.198638,0.00016438,2]
[389625251,1759752687975,-151.0,0.00016438,2]
[389625252,1759752687985,-1722.25,0.00016438,2]
[389625253,1759752687995,-323.365855,0.00016438,2]
[389625254,1759752688005,-500.0,0.00016438,2]
[389625255,1759752688015,-3776.21,0.00016438,2]
[389625256,1759752688025,-360.198638,0.00016438,2]
[389625257,1759752688034,-151.0,0.00016438,2]
[389625258,1759752688044,-1722.25,0.00016438,2]
[389625259,1759752688053,-500.0,0.00016438,2]
[389625260,1759752688063,-3776.21,0.00016438,2]
[389625261,1759752688073,-323.365855,0.00016438,2]
[389625262,1759752688082,-360.198638,0.00016438,2]
[389625263,1759752688091,-151.0,0.00016438,2]
[389625264,1759752688100,-1722.25,0.00016438,2]
[389625265,1759752688110,-500.0,0.00016438,2]
[389625266,1759752688119,-3776.21,0.00016438,2]
[389625267,1759752688128,-500.0,0.00016438,2]
[389625268,1759752688137,-323.365855,0.00016438,2]
[389625269,1759752688146,-1722.25,0.00016438,2]
[389625270,1759752688155,-360.198638,0.00016438,2]
[389625271,1759752688165,-151.0,0.00016438,2]
[389625272,1759752688174,-500.0,0.00016438,2]
[389625273,1759752688183,-1233.14,0.00016438,2]
[389625274,1759752688192,-3776.21,0.00016438,2]
[389625275,1759752688201,-500.0,0.00016438,2]
[389625276,1759752688210,-1722.25,0.00016438,2]
[389625277,1759752688218,-360.198638,0.00016438,2]
[389625278,1759752688227,-500.0,0.00016438,2]
[389625279,1759752688237,-187.203997,0.00016438,2]
[389625280,1759752688246,-1233.14,0.00016438,2]
[389625281,1759752688255,-3776.21,0.00016438,2]
[389625282,1759752688264,-99.18539349,0.00016438,2]
[389625283,1759752688352,-400.81460651,0.00016438,2]
[389625284,1759752688364,-1722.25,0.00016438,2]
[389625285,1759752688375,-134.12055603,0.00016438,2]
[389625286,1759752688390,-365.87944397,0.00016438,2]
[389625287,1759752688400,-323.365855,0.00016438,2]
[389625288,1759752688408,-360.19863,0.00016438,2]
[389625289,1759752688418,-1233.14,0.00016438,2]
[389625290,1759752688427,-3776.21,0.00016438,2]
[389625291,1759752688436,-500.0,0.00016438,2]
[389625292,1759752688445,-500.61851964,0.00016438,2]
[389625293,1759752688460,-1722.25,0.00016438,2]
[389625294,1759752688469,-6020.0,0.00016438,2]
[389625295,1759752688478,-500.0,0.00016438,2]
[389625296,1759752688487,-323.365855,0.00016438,2]
[389625297,1759752688498,-1233.14,0.00016438,2]
[389625298,1759752688507,-3776.21,0.00016438,2]
[389625299,1759752688516,-500.0,0.00016438,2]
[389625300,1759752688525,-1722.25,0.00016438,2]
[389625301,1759752688538,-6020.0,0.00016438,2]
[389625302,1759752688547,-500.0,0.00016438,2]
[389625303,1759752688557,-3776.21,0.00016438,2]
[389625304,1759752688568,-500.0,0.00016438,2]
[389625305,1759752688578,-323.365859,0.00016438,2]
[389625306,1759752688587,-500.0,0.00016438,2]
[389625307,1759752688598,-1233.14,0.00016438,2]
[389625308,1759752688609,-1722.25,0.00016438,2]
[389625309,1759752688618,-3981.17682335,0.00016438,2]
[389625310,1759752688912,-284.164703,0.00016119,2]
[389625311,1759752688922,-652.8467931,0.00016285,2]
[389625312,1759752688931,-62.9885039,0.00016377,2]
[389625313,1759752688945,-589.8582892,0.00016377,2]
[389625314,1759752688955,-2038.82317665,0.00016438,2]
[389625315,1759752688965,-500.0,0.00016438,2]
[389625316,1759752688975,-1233.14,0.00016438,2]
[389625317,1759752688985,-500.0,0.00016438,2]
[389625318,1759752688994,-4640.8826653,0.00016438,2]
[389625319,1759752689007,-1379.1173347,0.00016438,2]
[389625320,1759752689016,-1722.25,0.00016438,2]
[389625321,1759752689025,-1233.14,0.00016438,2]
[389625322,1759752689035,-462.67,0.00016438,2]
[389625323,1759752689046,-304.3189821,0.00016438,2]
[389625324,1759752689055,-1172.0550532,0.00016438,2]
[389625325,1759752689070,-550.1949468,0.00016438,2]
[389625326,1759752689080,-6020.0,0.00016438,2]
[389625327,1759752689089,-1233.14,0.00016438,2]
[389625328,1759752689099,-1722.25,0.00016438,2]
[389625329,1759752689108,-661.6050532,0.00016438,2]
[389625330,1759752689121,-4817.87,0.00016438,2]
[389625331,1759752689132,-540.5249468,0.00016438,2]
[389625332,1759752689142,-1233.14,0.00016438,2]
[389625333,1759752689151,-500.0,0.00016438,2]
[389625334,1759752689160,-1722.25,0.00016438,2]
[389625335,1759752689169,-2443.4941904,0.00016438,2]
[389625336,1759752726167,13449.30058672,0.0001186,2]
[389625340,1759753034715,208.69498881,5.7e-05,2]
[389625341,1759753038603,500.0,5.7e-05,2]
[389625349,1759753727825,711.62412171,0.0001,2]
[389625350,1759753758463,-180.0,0.00014107,2]
[389625351,1759753758486,-930.63,0.00014271,2]
[389625352,1759753758506,-205.391,0.00014319,2]
[389625353,1759753790684,3285.626624,0.0001434,2]
[389625369,1759753832283,-334.78694722,0.0001434,2]
[389625379,1759753832400,-3315.46642878,0.0001434,2]
[389625380,1759753832410,-250.0,0.00014519,2]
[389625381,1759753832419,-161.62409899,0.00014519,2]
[389625382,1759753832428,-150.00000001,0.0001477,2]
[389625383,1759753832437,-150.0,0.0001477,2]
[389625384,1759753832446,-150.00000001,0.0001477,2]
[389625385,1759753832456,-150.0,0.0001477,2]
[389625386,1759753832465,-284.164703,0.000149,2]
[389625387,1759753832474,-291.99252348,0.00014958,2]
[389625388,1759753832483,-1200.0,0.00014958,2]
[389625389,1759753832492,-150.0,0.00014958,2]
[389625390,1759753832501,-90818.0,0.00014959,2]
[389625391,1759753832510,-2294.3136278,0.00014968,2]
[389625392,1759753832520,-500.0,0.00014973,2]
[389625393,1759753832528,-503.29950988,0.00014973,2]
[389625394,1759753832537,-500.0,0.00014973,2]
[389625395,1759753832547,-502.18140096,0.00014973,2]
[389625396,1759753832556,-260.92677151,0.00014973,2]
[389625397,1759753832565,-151.0,0.00014997,2]
[389625398,1759753832575,-151.0,0.00014997,2]
[389625399,1759753832584,-151.0,0.00014997,2]
[389625400,1759753832593,-22399.01824938,0.00015,2]
[389625401,1759753832604,-372.13254803,0.00015,2]
[389625402,1759753832633,-37536.31062665,0.00015,2]
[389625403,1759753832643,-55228.34663825,0.00015,2]
[389625404,1759753832654,-335.26580545,0.00015,2]
[389625405,1759753832665,-9589.39643398,0.00015,2]
[389625406,1759753832705,-66083.55497471,0.00015,2]
[389625407,1759753832728,-5854.1237225,0.00015,2]
[389625408,1759753832739,-370.0,0.00015,2]
[389625410,1759753832751,-797.01073431,0.00015,2]
[389625433,1759753838326,-674391.79293057,0.00015,2]
[389625434,1759753838339,-1435304.5517475,0.00015,2]
[389625435,1759753838349,-774.17307018,0.00015,2]
[389625436,1759753838359,-6297.12,0.0001507,2]
[389625437,1759753838368,-2294.31362776,0.0001512,2]
[389625438,1759753838377,-512.87949371,0.00015169,2]
[389625439,1759753838387,-509.25,0.00015184,2]
[389625440,1759753838396,-1600.0,0.00015193,2]
[389625441,1759753838405,-338.0,0.00015259,2]
[389625442,1759753838415,-338.0,0.00015269,2]
[389625443,1759753838424,-2294.31362776,0.00015272,2]
[389625444,1759753838434,-163.39,0.00015358,2]
[389625445,1759753838443,-390.93,0.00015379,2]
[389625446,1759753838453,-212.94159925,0.000154,2]
[389625447,1759753838463,-338.0,0.00015406,2]
[389625448,1759753838472,-338.0,0.00015412,2]
[389625449,1759753838481,-2294.31362776,0.00015425,2]
[389625450,1759753838491,-300.0,0.00015517,2]
[389625451,1759753838500,-2107.63337798,0.00015517,2]
[389625452,1759753838509,-150.46294167,0.00015517,2]
[389625453,1759753838519,-500.0,0.00015521,2]
[389625454,1759753838528,-338.0,0.00015532,2]
[389625455,1759753838537,-338.0,0.00015568,2]
[389625456,1759753838547,-2294.31362776,0.00015577,2]
[389625457,1759753838557,-7965.41053268,0.00015598,2]
[389625458,1759753838566,-231.28369723,0.00015598,2]
[389625459,1759753838576,-4542.59694658,0.00015634,2]
[389625460,1759753838586,-8260.13072239,0.00015653,2]
[389625461,1759753838595,-370.68887098,0.00015692,2]
[389625462,1759753838604,-8565.75555911,0.00015708,2]
[389625463,1759753838614,-500.0,0.00015712,2]
[389625464,1759753838624,-2294.31362776,0.00015729,2]
[389625465,1759753838634,-8882.6885148,0.00015763,2]
[389625466,1759753838643,-300.0,0.00015774,2]
[389625467,1759753838653,-338.0,0.00015779,2]
[389625468,1759753838662,-421.12376126,0.00015781,2]
[389625469,1759753838672,-1025.75898743,0.00015782,2]
[389625470,1759753838681,-9211.34798985,0.00015818,2]
[389625471,1759753838691,-9552.16786547,0.00015873,2]
[389625472,1759753838700,-2294.31362776,0.00015881,2]
[389625473,1759753838710,-722.52041113,0.0001589,2]
[389625474,1759753838719,-200.0,0.0001589,2]
[389625475,1759753838729,-500.0,0.0001589,2]
[389625476,1759753838738,-500.0,0.0001589,2]
[389625477,1759753838748,-500.0,0.0001589,2]
[389625478,1759753838758,-500.0,0.0001589,2]
[389625479,1759753838767,-500.0,0.0001589,2]
[389625480,1759753838777,-500.0,0.0001589,2]
[389625481,1759753838786,-500.0,0.0001589,2]
[389625482,1759753838796,-500.0,0.0001589,2]
[389625483,1759753838806,-500.0,0.0001589,2]
[389625484,1759753838817,-500.0,0.0001589,2]
[389625485,1759753838827,-500.0,0.0001589,2]
[389625486,1759753838836,-500.0,0.0001589,2]
[389625487,1759753838846,-500.0,0.0001589,2]
[389625488,1759753838855,-322.6107,0.0001589,2]
[389625489,1759753838865,-9905.5980765,0.00015928,2]
[389625490,1759753838874,-338.0,0.00015928,2]
[389625491,1759753838884,-509.25,0.00015943,2]
[389625492,1759753838894,-10272.10520533,0.00015983,2]
[389625493,1759753838904,-2022.14,0.00016,2]
[389625494,1759753838914,-223.13,0.00016,21]
[389625495,1759753838923,-150.0,0.00016,2]
[389625496,1759753838933,-8843.0,0.00016,2]
[389625497,1759753838943,-9999.98,0.00016,2]
[389625498,1759753838952,-22500.0,0.00016,2]
[389625499,1759753838962,-10000.0,0.00016,2]
[389625500,1759753838972,-2294.31362776,0.00016034,2]
[389625501,1759753838982,-2942.80696385,0.00016038,2]
[389625502,1759753838992,-22148.26,0.0001605,2]
[389625503,1759753839002,-255.0,0.0001608,2]
[389625504,1759753839012,-2470.39475562,0.00016109,2]
[389625505,1759753839022,-10000.0,0.00016133,2]
[389625506,1759753839031,-152.0,0.00016137,3]
[389625507,1759753839040,-1425.0,0.00016182,2]
[389625508,1759753839056,-2294.31362776,0.00016186,2]
[389625509,1759753839065,-267.3165,0.00016189,2]
[389625510,1759753839075,-150.0,0.000162,2]
[389625511,1759753839084,-5526.20234134,0.000162,2]
[389625512,1759753839094,-150.0,0.00016234,2]
[389625513,1759753839103,-187.87273912,0.00016235,2]
[389625514,1759753839113,-286.78449995,0.00016238,2]
[389625515,1759753839127,-151.0,0.00016246,2]
[389625516,1759753839137,-161.2883378,0.00016274,2]
[389625517,1759753839147,-5431.51141476,0.00016277,2]
[389625518,1759753839156,-5431.51141476,0.0001628,2]
[389625519,1759753839166,-38379.72091842,0.0001628,2]
[389625520,1759753839176,-10832.88624389,0.00016282,2]
[389625521,1759753839185,-1050.11239367,0.00016283,2]
[389625522,1759753839195,-338.0,0.00016284,2]
[389625523,1759753839205,-1000.0,0.00016285,2]
[389625524,1759753839216,-10832.88624389,0.00016294,2]
[389625525,1759753839226,-8378.0866295,0.00016294,2]
[389625526,1759753839235,-1000.0,0.00016296,2]
[389625527,1759753839245,-125491.18351835,0.00016304,2]
[389625528,1759753839255,-338.0,0.00016305,2]
[389625529,1759753839264,-200.0,0.00016307,2]
[389625530,1759753839274,-3271.02980471,0.00016307,2]
[389625531,1759753839284,-152.0,0.00016311,4]
[389625532,1759753839294,-125491.18351835,0.00016312,2]
[389625533,1759753839305,-3271.02980471,0.00016317,2]
[389625534,1759753839314,-1050.11239367,0.00016323,2]
[389625535,1759753839324,-233.343174,0.00016324,2]
[389625536,1759753839333,-1050.11239367,0.00016326,2]
[389625537,1759753839343,-10832.88624389,0.00016327,2]
[389625538,1759753839352,-125491.18351835,0.00016328,2]
[389625539,1759753839362,-3271.02980471,0.00016328,2]
[389625540,1759753839371,-233.343174,0.0001633,2]
[389625541,1759753839381,-8378.0866295,0.0001633,2]
[389625542,1759753839390,-233.343174,0.00016331,2]
[389625543,1759753839400,-3271.02980471,0.00016332,2]
[389625544,1759753839409,-2764.6902,0.00016338,2]
[389625545,1759753839418,-492.5706,0.00016338,2]
[389625546,1759753839427,-2294.31362776,0.00016338,2]
[389625547,1759753839436,-210.83704388,0.00016338,2]
[389625548,1759753839445,-200.98456454,0.00016338,2]
[389625549,1759753839456,-265.2334,0.00016338,2]
[389625550,1759753839465,-2440.9639,0.00016338,2]
[389625551,1759753839474,-125491.18351835,0.00016338,2]
[389625552,1759753839484,-1987.797,0.00016342,2]
[389625553,1759753839493,-175.433,0.00016342,2]
[389625554,1759753839503,-5431.51141476,0.00016343,2]
[389625555,1759753839512,-406.26498343,0.00016343,2]
[389625556,1759753839521,-8378.0866295,0.00016351,2]
[389625557,1759753839531,-10832.88624389,0.00016355,2]
[389625558,1759753839540,-2500.0,0.00016356,3]
[389625559,1759753839551,-125491.18351835,0.00016356,2]
[389625560,1759753839560,-10832.88624389,0.00016358,2]
[389625561,1759753839570,-1050.11239367,0.00016364,2]
[389625562,1759753839579,-2500.0,0.00016365,3]
[389625563,1759753839589,-1050.11239367,0.00016367,2]
[389625564,1759753839599,-532.04033263,0.0001637,2]
[389625565,1759753839609,-700.0,0.0001637,2]
[389625566,1759753839618,-700.0,0.0001637,2]
[389625567,1759753839627,-700.0,0.0001637,2]
[389625568,1759753839637,-907.85281298,0.0001637,2]
[389625569,1759753839646,-8378.0866295,0.00016373,2]
[389625570,1759753839656,-2500.0,0.00016374,3]
[389625571,1759753839666,-818.67050092,0.00016376,2]
[389625572,1759753839675,-8378.0866295,0.00016376,2]
[389625573,1759753839685,-3271.02980471,0.0001638,2]
[389625574,1759753839694,-5431.51141476,0.00016382,2]
[389625575,1759753839704,-5431.51141476,0.00016382,2]
[389625576,1759753839713,-2500.0,0.00016382,3]
[389625577,1759753839723,-1000.0,0.00016388,2]
[389625578,1759753839733,-338.0,0.00016389,2]
[389625579,1759753839742,-233.343174,0.00016389,2]
[389625580,1759753839752,-2500.0,0.00016391,3]
[389625581,1759753839762,-233.343174,0.00016392,2]
[389625582,1759753839772,-350.46440155,0.00016392,2]
[389625583,1759753839781,-168.40353846,0.00016392,2]
[389625584,1759753839790,-1538.63848114,0.00016395,2]
[389625585,1759753839800,-5008.9811261,0.00016399,2]
[389625586,1759753839810,-607.59494347,0.000164,2]
[389625587,1759753839820,-2500.0,0.000164,3]
[389625588,1759753839831,-370.68887098,0.000164,3]
[389625589,1759753839841,-20000.0,0.000164,2]
[389625590,1759753839851,-385.0,0.000164,2]
[389625591,1759753839861,-190.21218168,0.00016422,2]
[389625592,1759753839871,-20505.2034332,0.00016435,2]
[389625593,1759753839880,-666.0,0.00016437,2]
[389625594,1759753839890,-150.0,0.00016437,2]
[389625595,1759753839900,-150.0,0.00016437,2]
[389625596,1759753839910,-635.88,0.00016437,2]
[389625597,1759753839920,-8898.46739177,0.00016437,2]
[389625598,1759753839930,-150.0,0.00016437,2]
[389625599,1759753839940,-500.0,0.00016437,2]
[389625600,1759753839951,-150.0,0.00016437,2]
[389625601,1759753839960,-654.0,0.00016437,2]
[389625602,1759753839970,-500.0,0.00016437,2]
[389625603,1759753839980,-150.0,0.00016437,2]
[389625604,1759753839990,-500.0,0.00016437,2]
[389625605,1759753840000,-8836.0223978,0.00016437,2]
[389625606,1759753840010,-1826.0,0.00016437,2]
[389625607,1759753840020,-500.0,0.00016437,2]
[389625608,1759753840030,-500.0,0.00016437,2]
[389625609,1759753840040,-684.0,0.00016437,2]
[389625611,1759753840052,-500.0,0.00016437,2]
[389625612,1759753840064,-3937.0,0.00016437,2]
[389625613,1759753840074,-150.0,0.00016437,2]
[389625614,1759753840084,-500.0,0.00016437,2]
[389625615,1759753840094,-150.0,0.00016437,2]
[389625617,1759753840106,-500.0,0.00016437,2]
[389625618,1759753840116,-500.0,0.00016437,2]
[389625620,1759753840126,-179.00529582,0.00016437,2]
[389625621,1759753840139,-500.0,0.00016437,2]
[389625622,1759753840148,-500.0,0.00016437,2]
[389625623,1759753840158,-500.0,0.00016437,2]
[389625624,1759753840168,-150.0,0.00016437,2]
[389625626,1759753840178,-500.0,0.00016437,2]
[389625627,1759753840188,-500.0,0.00016437,2]
[389625628,1759753840198,-150.0,0.00016437,2]
[389625629,1759753840207,-1021.0,0.00016437,2]
[389625630,1759753840218,-500.0,0.00016437,2]
[389625631,1759753840230,-597.81780319,0.00016437,2]
[389625632,1759753840240,-686224.75192692,0.00016438,2]
[389625633,1759753840250,-501.01772636,0.00016438,2]
[389625634,1759753840260,-405.09090254,0.00016438,2]
[389625635,1759753840270,-500.0,0.00016438,2]
[389625636,1759753840280,-500.0,0.00016438,2]
[389625637,1759753840290,-227.40131573,0.00016438,2]
[389625638,1759753840301,-500.0,0.00016438,2]
[389625639,1759753840310,-500.0,0.00016438,2]
[389625640,1759753840331,-500.0,0.00016438,2]
[389625641,1759753840341,-505.68030496,0.00016438,2]
[389625642,1759753840351,-502.70131991,0.00016438,2]
[389625643,1759753840361,-500.0,0.00016438,2]
[389625644,1759753840371,-500.0,0.00016438,2]
[389625645,1759753840381,-500.0,0.00016438,2]
[389625646,1759753840391,-500.0,0.00016438,2]
[389625647,1759753840400,-500.0,0.00016438,2]
[389625648,1759753840410,-500.0,0.00016438,2]
[389625649,1759753840420,-500.0,0.00016438,2]
[389625650,1759753840431,-500.0,0.00016438,2]
[389625651,1759753840441,-500.0,0.00016438,2]
[389625652,1759753840451,-500.0,0.00016438,2]
[389625653,1759753840461,-500.0,0.00016438,2]
[389625654,1759753840471,-500.0,0.00016438,2]
[389625655,1759753840481,-500.0,0.00016438,2]
[389625656,1759753840491,-151.0,0.00016438,2]
[389625657,1759753840501,-151.0,0.00016438,2]
[389625658,1759753840511,-151.0,0.00016438,2]
[389625659,1759753840522,-300.0,0.00016438,2]
[389625660,1759753840532,-300.0,0.00016438,2]
[389625661,1759753840542,-300.0,0.00016438,2]
[389625662,1759753840554,-300.0,0.00016438,2]
[389625663,1759753840564,-300.0,0.00016438,2]
[389625664,1759753840574,-300.0,0.00016438,2]
[389625665,1759753840584,-300.0,0.00016438,2]
[389625666,1759753840594,-300.0,0.00016438,2]
[389625667,1759753840604,-300.0,0.00016438,2]
[389625668,1759753840614,-300.0,0.00016438,2]
[389625669,1759753840624,-300.0,0.00016438,2]
[389625670,1759753840635,-300.0,0.00016438,2]
[389625671,1759753840645,-300.0,0.00016438,2]
[389625672,1759753840655,-300.0,0.00016438,2]
[389625673,1759753840665,-300.0,0.00016438,2]
[389625674,1759753840676,-300.0,0.00016438,2]
[389625675,1759753840686,-300.0,0.00016438,2]
[389625676,1759753840696,-300.0,0.00016438,2]
[389625677,1759753840706,-300.0,0.00016438,2]
[389625678,1759753840716,-300.0,0.00016438,2]
[389625679,1759753840727,-300.0,0.00016438,2]
[389625681,1759753840737,-300.0,0.00016438,2]
[389625684,1759753840747,-300.0,0.00016438,2]
[389625686,1759753840757,-300.0,0.00016438,2]
[389625688,1759753840767,-300.0,0.00016438,2]
[389625690,1759753840777,-300.0,0.00016438,2]
[389625692,1759753840787,-300.0,0.00016438,2]
[389625694,1759753840797,-300.0,0.00016438,2]
[389625696,1759753840807,-300.0,0.00016438,2]
[389625698,1759753840817,-300.0,0.00016438,2]
[389625701,1759753840827,-500.0,0.00016438,2]
[389625703,1759753840838,-500.0,0.00016438,2]
[389625705,1759753840848,-300.0,0.00016438,2]
[389625707,1759753840858,-498.70783866,0.00016438,2]
[389625709,1759753840868,-300.0,0.00016438,2]
[389625711,1759753840877,-500.0,0.00016438,2]
[389625713,1759753840887,-300.0,0.00016438,2]
[389625715,1759753840897,-500.0,0.00016438,2]
[389625717,1759753840907,-500.0,0.00016438,2]
[389625719,1759753840916,-500.0,0.00016438,2]
[389625721,1759753840926,-500.0,0.00016438,2]
[389625723,1759753840936,-500.0,0.00016438,2]
[389625725,1759753840945,-300.0,0.00016438,2]
[389625727,1759753840955,-500.0,0.00016438,2]
[389625730,1759753840965,-500.0,0.00016438,2]
[389625732,1759753840977,-500.0,0.00016438,2]
[389625734,1759753840987,-500.0,0.00016438,2]
[389625735,1759753840996,-500.0,0.00016438,2]
[389625738,1759753841006,-300.0,0.00016438,2]
[389625740,1759753841016,-500.0,0.00016438,2]
[389625742,1759753841025,-500.0,0.00016438,2]
[389625744,1759753841035,-500.0,0.00016438,2]
[389625746,1759753841046,-266.33681838,0.00016438,2]
[389625748,1759753841057,-300.0,0.00016438,2]
[389625750,1759753841068,-300.0,0.00016438,2]
[389625752,1759753841078,-300.0,0.00016438,2]
[389625754,1759753841088,-300.0,0.00016438,2]
[389625756,1759753841099,-300.0,0.00016438,2]
[389625758,1759753841109,-500.0,0.00016438,2]
[389625760,1759753841118,-440.06576178,0.00016438,2]
[389625762,1759753841128,-404.93963033,0.00016438,2]
[389625764,1759753841138,-500.0,0.00016438,2]
[389625766,1759753841147,-500.0,0.00016438,2]
[389625769,1759753841158,-500.0,0.00016438,2]
[389625771,1759753841168,-500.0,0.00016438,2]
[389625773,1759753841178,-231.18566328,0.00016438,2]
[389625775,1759753841188,-153.0,0.00016438,2]
[389625777,1759753841198,-153.0,0.00016438,2]
[389625779,1759753841208,-153.0,0.00016438,2]
[389625781,1759753841218,-153.0,0.00016438,2]
[389625783,1759753841229,-153.0,0.00016438,2]
[389625785,1759753841247,-153.0,0.00016438,2]
[389625787,1759753841256,-153.0,0.00016438,2]
[389625790,1759753841267,-153.0,0.00016438,2]
[389625792,1759753841277,-153.0,0.00016438,2]
[389625794,1759753841286,-153.0,0.00016438,2]
[389625796,1759753841299,-153.0,0.00016438,2]
[389625797,1759753841315,-153.0,0.00016438,2]
[389625799,1759753841326,-153.0,0.00016438,2]
[389625802,1759753841336,-182.99591805,0.00016438,2]
[389625804,1759753841346,-305.31,0.00016438,2]
[389625806,1759753841355,-500.0,0.00016438,2]
[389625808,1759753841365,-389.30494885,0.00016438,2]
[389625810,1759753841377,-500.0,0.00016438,2]
[389625812,1759753841390,-500.0,0.00016438,2]
[389625814,1759753841401,-500.0,0.00016438,2]
[389625816,1759753841411,-500.0,0.00016438,2]
[389625818,1759753841421,-500.0,0.00016438,2]
[389625820,1759753841431,-500.0,0.00016438,2]
[389625822,1759753841441,-500.0,0.00016438,2]
[389625824,1759753841451,-819.0,0.00016438,2]
[389625826,1759753841461,-675.05532823,0.00016438,2]
[389625828,1759753841471,-500.0,0.00016438,2]
[389625830,1759753841481,-500.0,0.00016438,2]
[389625832,1759753841491,-500.0,0.00016438,2]
[389625834,1759753841500,-500.0,0.00016438,2]
[389625836,1759753841510,-500.0,0.00016438,2]
[389625838,1759753841520,-500.0,0.00016438,2]
[389625840,1759753841530,-500.0,0.00016438,2]
[389625842,1759753841539,-500.0,0.00016438,2]
[389625845,1759753841549,-431.95857273,0.00016438,2]
[389625847,1759753841559,-500.0,0.00016438,2]
[389625849,1759753841569,-500.0,0.00016438,2]
[389625851,1759753841579,-500.0,0.00016438,2]
[389625853,1759753841589,-500.0,0.00016438,2]
[389625855,1759753841598,-500.0,0.00016438,2]
[389625857,1759753841608,-500.0,0.00016438,2]
[389625859,1759753841618,-500.0,0.00016438,2]
[389625860,1759753841627,-500.0,0.00016438,2]
[389625861,1759753841637,-159.969361,0.00016438,2]
[389625862,1759753841647,-265.852755,0.00016438,2]
[389625863,1759753841657,-636.77,0.00016438,2]
[389625864,1759753841667,-636.77,0.00016438,2]
[389625865,1759753841677,-636.77,0.00016438,2]
[389625866,1759753841686,-636.77,0.00016438,2]
[389625867,1759753841697,-636.77,0.00016438,2]
[389625868,1759753841707,-636.77,0.00016438,2]
[389625869,1759753841716,-636.77,0.00016438,2]
[389625870,1759753841726,-636.77,0.00016438,2]
[389625871,1759753841737,-636.77,0.00016438,2]
[389625872,1759753841748,-636.77,0.00016438,2]
[389625873,1759753841758,-636.77,0.00016438,2]
[389625874,1759753841768,-636.77,0.00016438,2]
[389625875,1759753841778,-636.77,0.00016438,2]
[389625876,1759753841788,-636.77,0.00016438,2]
[389625877,1759753841798,-636.77,0.00016438,2]
[389625878,1759753841808,-636.77,0.00016438,2]
[389625880,1759753841818,-636.77,0.00016438,2]
[389625881,1759753841828,-636.77,0.00016438,2]
[389625883,1759753841837,-636.77,0.00016438,2]
[389625885,1759753841847,-636.77,0.00016438,2]
[389625887,1759753841858,-636.77,0.00016438,2]
[389625889,1759753841868,-636.77,0.00016438,2]
[389625891,1759753841878,-636.77,0.00016438,2]
[389625894,1759753841889,-636.86244395,0.00016438,2]
[389625896,1759753841899,-151.0,0.00016438,2]
[389625898,1759753841909,-151.0,0.00016438,2]
[389625900,1759753841919,-151.0,0.00016438,2]
[389625902,1759753841928,-151.0,0.00016438,2]
[389625904,1759753841938,-151.0,0.00016438,2]
[389625906,1759753841948,-151.0,0.00016438,2]
[389625908,1759753841958,-151.0,0.00016438,2]